bitfinex/quotes_SOLUSD_20250918
["timestamp","ask_amount","ask_price","bid_price","bid_amount"]
[1758163288338,0.71,245.63,245.62,31.37]
[1758163290941,2.6985047,245.63,245.62,31.37]
[1758163291262,20.02384239,245.63,245.62,0.03]
[1758163296044,20.02384239,245.63,245.61,0.03]
[1758163296045,39.59559401,245.61,245.6,0.03]
[1758163296364,43.57260341,245.6,245.59,0.03]
[1758163296569,48.00234709,245.6,245.59,0.03]
[1758163297449,49.63336913,245.6,245.59,0.03]
[1758163297964,85.06503036,245.6,245.59,0.03]
[1758163300042,85.06544038,245.6,245.59,0.03]
[1758163302756,39.59559401,245.57,245.55,1e-08]
[1758163303056,50.67425241,245.56,245.55,1e-08]
[1758163303376,53.00547399,245.56,245.55,1e-08]
[1758163304253,57.07779847,245.56,245.55,1e-08]
[1758163304851,25.01779847,245.56,245.55,1e-08]
[1758163305263,15.22681559,245.56,245.55,1e-08]
[1758163305471,4.07140752,245.62,245.55,2.66850471]
[1758163305773,7.69053532,245.62,245.56,2.6685047]
[1758163305978,13.59559401,245.61,245.56,0.68]
[1758163306279,1.9885047,245.58,245.55,1e-08]
[1758163306450,1.9885047,245.57,245.55,1e-08]
[1758163307160,42.28409871,245.56,245.55,1e-08]
[1758163307579,43.91512075,245.56,245.55,1e-08]
[1758163308076,47.98744523,245.56,245.55,1e-08]
[1758163310254,43.21512075,245.56,245.55,1e-08]
[1758163310773,41.58409871,245.56,245.55,1e-08]
[1758163311471,27.9885047,245.56,245.55,1e-08]
[1758163311674,1.9885047,245.56,245.55,1e-08]
[1758163314780,16.28409871,245.56,245.55,1e-08]
[1758163315580,14.29559401,245.56,245.55,1e-08]
[1758163315888,42.28409871,245.56,245.55,1e-08]
[1758163316177,42.34409871,245.56,245.55,1e-08]
[1758163316379,41.64409871,245.56,245.55,1e-08]
[1758163317264,42.34409871,245.56,245.55,1e-08]
[1758163320285,41.64409871,245.56,245.55,1e-08]
[1758163321281,42.36409871,245.56,245.55,1e-08]
[1758163321681,41.64409871,245.56,245.55,1e-08]
[1758163322277,28.0485047,245.56,245.55,1e-08]
[1758163322481,26.06,245.56,245.55,0.66000001]
[1758163322678,26.06,245.56,245.55,1e-08]
[1758163324193,0.06,245.56,245.55,0.71000001]
[1758163325972,0.06,245.56,245.55,1e-08]
[1758163326272,0.06,245.56,245.55,0.71000001]
[1758163326788,0.06,245.56,245.55,2.69850471]
[1758163326990,0.06,245.56,245.55,0.71000001]
[1758163328285,0.06,245.56,245.55,1e-08]
[1758163328982,0.06,245.56,245.55,0.71000001]
[1758163330375,0.06,245.56,245.55,1e-08]
[1758163332999,15.61949993,245.56,245.55,1e-08]
[1758163333178,19.35059096,245.56,245.55,1e-08]
[1758163339591,54.11275927,245.56,245.55,1e-08]
[1758163339793,17.66808433,245.55,245.54,0.03]
[1758163340094,26.06956748,245.55,245.54,0.03]
[1758163340286,25.48566156,245.55,245.54,0.03]
[1758163340479,23.36308128,245.55,245.54,0.03]
[1758163342983,22.67308128,245.55,245.54,0.03]
[1758163343390,23.36308128,245.55,245.54,0.03]
[1758163345587,22.08917536,245.55,245.54,0.03]
[1758163345901,22.67308128,245.55,245.54,0.03]
[1758163346303,23.36308128,245.55,245.54,0.03]
[1758163346508,22.08917536,245.55,245.54,0.03]
[1758163346818,17.32668504,245.55,245.54,0.03]
[1758163347110,1.01839591,245.55,245.54,0.74]
[1758163348099,1.01839591,245.55,245.54,0.03]
[1758163348300,17.33421263,245.55,245.54,0.03]
[1758163348712,18.60811855,245.55,245.54,0.03]
[1758163348891,19.29811855,245.55,245.54,0.03]
[1758163349610,50.67811855,245.55,245.54,0.03]
[1758163352613,18.60811855,245.55,245.54,0.03]
[1758163353210,19.26811855,245.55,245.54,0.03]
[1758163354128,17.33421263,245.55,245.54,0.03]
[1758163354327,18.60811855,245.55,245.54,0.03]
[1758163355203,17.33421263,245.55,245.54,0.03]
[1758163355399,13.59559401,245.54,245.51,0.31]
[1758163355601,3.73861862,245.53,245.51,0.31]
[1758163355801,1.01839591,245.52,245.51,0.31]
[1758163357206,1.01839591,245.52,245.5,0.03]
[1758163357431,2.71826405,245.53,245.5,0.64]
[1758163357618,1.01849416,245.52,245.5,0.64]
[1758163357920,2.71833697,245.53,245.5,0.64]
[1758163358119,1.01849416,245.52,245.5,0.64]
[1758163358323,16.3138422,245.54,245.5,0.64]
[1758163358522,4.39674226,245.53,245.5,0.03]
[1758163358703,5.01086895,245.52,245.5,0.03]
[1758163358900,1.01849407,245.51,245.5,0.03]
[1758163359209,67.60087178,245.56,245.5,1.27390592]
[1758163359210,26.06,245.56,245.5,1.27390592]
[1758163359409,26.06,245.56,245.46,0.28432314]
[1758163359410,3.73712596,245.55,245.51,1.27390592]
[1758163359595,1.01847059,245.54,245.51,1.27390592]
[1758163359798,2.71877051,245.55,245.52,0.61]
[1758163359998,0.06,245.56,245.52,1.27390592]
[1758163360206,1.01838093,245.55,245.53,1.88390592]
[1758163360413,0.06,245.56,245.54,1.88390592]
[1758163360613,1.01838006,245.55,245.54,1.88390592]
[1758163360813,1.01838006,245.55,245.53,1.27390592]
[1758163361013,0.06,245.56,245.53,1.27390592]
[1758163361304,1.01838014,245.55,245.53,1.88390592]
[1758163361512,0.06,245.56,245.53,0.61]
[1758163361718,1.01838038,245.55,245.53,1.88390592]
[1758163362027,0.06,245.56,245.53,0.61]
[1758163362321,1.01838069,245.55,245.53,0.61]
[1758163362521,0.06,245.56,245.53,0.61]
[1758163362726,1.0183806,245.55,245.53,0.61]
[1758163363023,0.06,245.56,245.53,0.61]
[1758163363211,1.01838038,245.55,245.53,0.61]
[1758163363408,0.06,245.56,245.54,0.61]
[1758163363607,0.06,245.56,245.54,1.88390592]
[1758163363812,0.06,245.56,245.52,5.95679027]
[1758163364427,0.06,245.56,245.52,5.34679027]
[1758163364609,0.06,245.56,245.53,0.61]
[1758163365216,0.66,245.55,245.5,5.9571122]
[1758163365420,0.06,245.56,245.51,0.61]
[1758163365722,0.06,245.56,245.52,0.61]
[1758163366222,0.06,245.56,245.51,1.27390592]
[1758163366427,0.06,245.56,245.51,1.88390592]
[1758163366631,0.06,245.56,245.52,0.61]
[1758163367314,0.06,245.56,245.52,4.68286601]
[1758163367516,0.06,245.56,245.53,0.03]
[1758163370232,0.66,245.55,245.53,0.03]
[1758163371333,0.06,245.56,245.53,0.03]
[1758163371534,0.72,245.56,245.53,0.03]
[1758163373129,40.86949993,245.54,245.53,0.03]
[1758163373328,44.60278467,245.54,245.53,0.03]
[1758163373523,45.26278467,245.54,245.53,0.03]
[1758163374817,46.89400625,245.54,245.53,0.03]
[1758163375030,50.96666243,245.54,245.53,0.03]
[1758163375933,49.69275651,245.54,245.53,0.03]
[1758163376241,50.96666243,245.54,245.53,0.03]
[1758163377813,50.9668533,245.54,245.53,0.03]
[1758163382325,51.25117644,245.54,245.53,0.03]
[1758163382519,55.92156856,245.54,245.53,0.03]
[1758163382711,13.87991715,245.53,245.5,0.03]
[1758163382915,16.14340585,245.51,245.5,0.03]
[1758163383130,19.87688146,245.51,245.5,0.03]
[1758163383313,20.52688146,245.51,245.5,0.03]
[1758163383516,24.60219322,245.51,245.5,0.03]
[1758163383823,28.67534706,245.51,245.5,0.03]
[1758163386440,27.40144114,245.51,245.5,0.03]
[1758163391733,28.12007837,245.51,245.5,0.03]
[1758163398634,28.11277798,245.51,245.5,0.03]
[1758163401650,25.47023483,245.51,245.5,0.03]
[1758163401858,58.84277798,245.51,245.5,0.03]
[1758163403650,27.46277798,245.51,245.5,0.03]
[1758163406232,27.4622199,245.51,245.5,0.03]
[1758163408659,28.1122199,245.51,245.5,0.03]
[1758163413449,26.11967675,245.51,245.5,0.03]
[1758163413654,28.1122199,245.51,245.5,0.03]
[1758163415668,30.10476305,245.51,245.5,0.03]
[1758163417361,28.1122199,245.51,245.5,0.03]
[1758163418951,28.11247706,245.51,245.5,0.03]
[1758163419862,30.10502021,245.51,245.5,0.03]
[1758163420163,33.77317877,245.51,245.5,0.03]
[1758163420480,33.77317877,245.51,245.48,0.03]
[1758163420481,39.87991715,245.49,245.48,0.03]
[1758163420773,80.37070759,245.49,245.48,0.03]
[1758163421075,81.07070759,245.49,245.48,0.03]
[1758163421276,82.70252809,245.49,245.48,0.03]
[1758163421567,82.7097223,245.49,245.48,0.03]
[1758163422351,83.39068829,245.49,245.48,0.03]
[1758163422949,86.78386067,245.49,245.48,0.03]
[1758163423163,86.08386067,245.49,245.48,0.03]
[1758163423360,86.78386067,245.49,245.48,0.03]
[1758163423558,84.79131752,245.49,245.48,0.03]
[1758163423774,82.40636515,245.49,245.48,0.03]
[1758163424659,51.02636515,245.49,245.48,0.03]
[1758163425179,51.72636515,245.49,245.48,0.03]
[1758163425767,82.40636515,245.49,245.48,0.03]
[1758163428179,83.10636515,245.49,245.48,0.03]
[1758163429078,83.10937998,245.49,245.48,0.03]
[1758163429290,83.39370312,245.49,245.48,0.03]
[1758163429582,86.78999135,245.49,245.48,0.03]
[1758163429985,49.03683683,245.49,245.48,0.03]
[1758163430168,80.41683683,245.49,245.48,0.03]
[1758163430359,82.40937998,245.49,245.48,0.03]
[1758163432069,51.02937998,245.49,245.48,0.03]
[1758163432694,51.72937998,245.49,245.48,0.03]
[1758163434572,51.02937998,245.49,245.48,0.03]
[1758163435383,49.03683683,245.49,245.48,0.03]
[1758163435578,51.02937998,245.49,245.48,0.03]
[1758163436189,51.02926044,245.49,245.48,0.03]
[1758163436982,51.72926044,245.49,245.48,0.03]
[1758163438384,51.02926044,245.49,245.48,0.03]
[1758163440273,44.96323161,245.49,245.48,0.64]
[1758163440474,17.33141111,245.49,245.48,0.64]
[1758163440672,3.7358171,245.49,245.48,0.64]
[1758163446294,1.01878652,245.49,245.48,0.64]
[1758163446596,3.73938329,245.49,245.48,0.64]
[1758163446894,1.01878652,245.49,245.48,0.64]
[1758163447088,3.73938329,245.49,245.48,0.64]
[1758163447290,1.01878652,245.49,245.48,0.64]
[1758163447484,1.01878652,245.49,245.48,0.03]
[1758163449198,0.06,245.5,245.48,0.03]
[1758163452398,0.06,245.5,245.49,2.60254315]
[1758163453891,0.06,245.5,245.49,7.51527672]
[1758163454071,0.06,245.5,245.49,5.95721963]
[1758163455693,0.06,245.5,245.49,37.31721963]
[1758163456492,0.06,245.5,245.49,5.95721963]
[1758163456695,0.06,245.5,245.49,37.31721963]
[1758163457782,0.06,245.5,245.49,36.04348568]
[1758163458201,0.06,245.5,245.49,36.32780882]
[1758163464607,1e-08,245.5,245.49,36.32780882]
[1758163468498,1e-08,245.5,245.49,30.96780882]
[1758163468705,1e-08,245.5,245.49,62.32780882]
[1758163469691,1e-08,245.5,245.49,30.96780882]
[1758163469890,1e-08,245.5,245.49,62.30780882]
[1758163473909,1e-08,245.5,245.49,30.96780882]
[1758163474096,1e-08,245.5,245.49,62.30780882]
[1758163478313,1e-08,245.5,245.49,30.96780882]
[1758163478520,1e-08,245.5,245.49,62.30780882]
[1758163479913,1e-08,245.5,245.49,61.69780882]
[1758163481915,0.70000001,245.5,245.49,30.35780882]
[1758163482114,0.70000001,245.5,245.49,61.69780882]
[1758163483313,1e-08,245.5,245.49,61.69780882]
[1758163486197,1e-08,245.5,245.49,30.35780882]
[1758163486399,0.70000001,245.5,245.48,0.03]
[1758163486717,0.70000001,245.5,245.49,31.34]
[1758163495225,0.70000001,245.5,245.48,4.10362476]
[1758163495430,1e-08,245.5,245.49,31.34]
[1758163496007,0.70000001,245.5,245.49,31.34]
[1758163496415,1e-08,245.5,245.49,31.62432314]
[1758163498405,0.70000001,245.5,245.49,57.34]
[1758163498824,0.70000001,245.5,245.49,26.0]
[1758163499025,0.70000001,245.5,245.49,57.34]
[1758163500045,1e-08,245.5,245.49,57.34]
[1758163500241,0.70000001,245.5,245.49,31.34]
[1758163500729,0.70000001,245.5,245.48,4.10362476]
[1758163501036,0.7,245.49,245.48,4.10362476]
[1758163501334,0.7,245.49,245.48,35.44362476]
[1758163506940,1e-08,245.5,245.48,35.44362476]
[1758163506941,1e-08,245.5,245.49,0.14216157]
[1758163507132,1e-08,245.5,245.49,0.89432314]
[1758163507847,1e-08,245.5,245.49,2.52474685]
[1758163508716,1e-08,245.5,245.49,2.93209541]
[1758163509529,0.06,245.55,245.53,26.0]
[1758163509736,0.06,245.55,245.54,31.34]
[1758163510324,0.06,245.55,245.54,32.97022436]
[1758163510523,0.78,245.55,245.54,43.87162459]
[1758163511346,0.78,245.55,245.54,35.69697932]
[1758163511559,0.06,245.56,245.54,62.04003409]
[1758163511861,1e-08,245.63,245.62,0.28432314]
[1758163512028,1e-08,245.63,245.62,31.64432314]
[1758163512351,1e-08,245.63,245.62,32.13432314]
[1758163512656,0.06,245.69,245.65,26.0]
[1758163512950,0.2,245.74,245.67,0.28432314]
[1758163513140,0.2,245.74,245.68,31.36]
[1758163513338,0.2,245.74,245.69,4.07016972]
[1758163513745,0.92,245.74,245.69,5.69939807]
[1758163514833,1e-08,245.7,245.69,6.47372121]
[1758163517135,1e-08,245.7,245.69,5.98372121]
[1758163519036,1e-08,245.74,245.72,26.0]
[1758163519236,1e-08,245.75,245.74,0.28432314]
[1758163519438,1e-08,245.75,245.74,0.77432314]
[1758163519655,1e-08,245.75,245.74,4.84093902]
[1758163520350,1e-08,245.75,245.74,8.9102806]
[1758163521154,1e-08,245.75,245.74,8.4202806]
[1758163525368,1e-08,245.75,245.74,8.9102806]
[1758163525567,0.06,245.8,245.77,26.0]
[1758163525778,0.72,245.84,245.82,0.28432314]
[1758163526069,0.72,245.84,245.83,31.66432314]
[1758163526247,1.98635934,245.93,245.83,31.66432314]
[1758163526450,0.72,245.92,245.84,0.28432314]
[1758163526653,0.72,245.92,245.85,31.38]
[1758163526969,0.72,245.91,245.85,31.38]
[1758163527266,0.72,245.9,245.85,31.38]
[1758163527469,0.72,245.89,245.86,4.0673554]
[1758163527655,0.72,245.88,245.87,31.38]
[1758163529350,4.06718997,245.87,245.72,4.06967279]
[1758163529666,1.98635934,245.82,245.75,4.0661043]
[1758163529876,0.72,245.81,245.76,31.38]
[1758163530169,0.72,245.8,245.76,31.38]
[1758163530352,0.72,245.79,245.76,31.38]
[1758163530560,1.98635934,245.81,245.76,31.38]
[1758163530561,0.72,245.78,245.76,31.38]
[1758163530759,0.72,245.77,245.76,31.38]
[1758163531367,0.72,245.77,245.76,35.44901041]
[1758163534576,4.06766304,245.86,245.76,45.90585959]
[1758163534768,0.66,245.81,245.77,0.28432314]
[1758163534957,1.98635934,245.85,245.78,31.4]
[1758163535277,0.66,245.84,245.78,31.4]
[1758163535468,0.66,245.83,245.78,31.4]
[1758163535670,0.66,245.82,245.78,31.4]
[1758163535969,0.66,245.81,245.78,31.4]
[1758163536163,0.66,245.8,245.79,4.06851377]
[1758163536966,0.66,245.8,245.78,31.4]
[1758163537169,1.98635934,245.83,245.78,31.4]
[1758163537371,0.66,245.79,245.78,31.4]
[1758163540176,0.66,245.83,245.79,4.06851377]
[1758163540350,27.98635934,245.87,245.8,31.42]
[1758163540551,0.66,245.86,245.8,31.42]
[1758163540874,0.66,245.86,245.81,0.28432314]
[1758163541177,4.06776419,245.87,245.82,31.42]
[1758163541178,0.66,245.85,245.82,31.42]
[1758163541379,0.66,245.84,245.82,31.42]
[1758163541578,10.12085232,245.9,245.82,31.42]
[1758163541882,0.66,245.83,245.82,31.42]
[1758163542069,0.66,245.83,245.82,35.48801724]
[1758163542377,0.72,245.83,245.82,31.42]
[1758163550586,2.70635934,245.83,245.79,31.4]
[1758163550784,2.64635934,245.82,245.79,31.4]
[1758163550988,0.06,245.83,245.8,0.77432314]
[1758163551382,0.06,245.83,245.81,0.49]
[1758163551575,0.06,245.83,245.82,31.76432314]
[1758163552192,0.06,245.83,245.82,35.83234038]
[1758163552793,0.06,245.83,245.82,36.32234038]
[1758163553005,0.06,245.83,245.82,35.83234038]
[1758163555497,0.06,245.83,245.82,36.32234038]
[1758163556796,0.06,245.83,245.82,35.83234038]
[1758163557294,0.06,245.83,245.82,35.81234038]
[1758163557598,0.06,245.83,245.82,50.30473611]
[1758163557599,1e-08,245.83,245.82,50.30473611]
[1758163557775,1e-08,245.83,245.82,49.89793439]
[1758163560588,1e-08,245.83,245.82,36.30234038]
[1758163561592,1e-08,245.83,245.82,35.81234038]
[1758163561793,1e-08,245.83,245.82,36.30234038]
[1758163562696,0.06,245.85,245.84,26.28432314]
[1758163562902,0.06,245.85,245.84,57.82432314]
[1758163563080,0.06,245.85,245.84,58.31432314]
[1758163564277,0.06,245.85,245.84,57.82432314]
[1758163564511,0.06,245.85,245.84,61.89200944]
[1758163566203,0.06,245.85,245.84,62.38200944]
[1758163566592,1e-08,245.85,245.84,62.78877807]
[1758163566794,1e-08,245.85,245.84,62.38200944]
[1758163567194,1e-08,245.85,245.84,61.89200944]
[1758163567596,1e-08,245.85,245.84,62.38200944]
[1758163567788,1e-08,245.85,245.84,61.89200944]
[1758163568104,1e-08,245.85,245.84,62.38200944]
[1758163569690,1e-08,245.85,245.84,61.89200944]
[1758163571790,1e-08,245.85,245.84,62.38200944]
[1758163572994,1e-08,245.85,245.84,61.89200944]
[1758163580897,0.71000001,245.85,245.84,61.89200944]
[1758163581099,0.71000001,245.85,245.84,30.35200944]
[1758163581300,0.71000001,245.85,245.84,61.81200944]
[1758163582198,1e-08,245.85,245.84,61.81200944]
[1758163584522,1.26991111,245.96,245.85,0.28432314]
[1758163584723,1.26991111,245.97,245.87,0.28432314]
[1758163585027,1.26991111,245.97,245.88,31.44]
[1758163585223,1.26991111,245.96,245.89,4.06685916]
[1758163585428,1.26991111,245.96,245.9,31.44]
[1758163585930,13.59559401,245.98,245.9,31.44]
[1758163586129,1.26991111,245.92,245.83,26.0]
[1758163586303,1.26991111,245.91,245.84,31.46]
[1758163586502,0.71,245.92,245.86,0.28432314]
[1758163586709,0.71,245.92,245.87,31.46]
[1758163587023,0.71,245.91,245.87,31.46]
[1758163587206,0.71,245.91,245.87,35.52706548]
[1758163587413,0.71,245.9,245.87,35.52706548]
[1758163588020,17.66112927,245.98,245.88,0.28432314]
[1758163588228,2.99678882,245.97,245.89,31.46]
[1758163588529,0.71,245.97,245.9,0.28432314]
[1758163588702,0.71,245.97,245.91,31.46]
[1758163589428,0.71,245.97,245.91,35.52645813]
[1758163590818,0.71,245.97,245.92,31.46]
[1758163591210,0.71,245.97,245.93,35.50617283]
[1758163591398,0.71,245.97,245.93,4.06617283]
[1758163591594,0.71,245.97,245.94,31.44]
[1758163592018,4.06512883,246.0,245.94,31.44]
[1758163592216,1.01669492,245.99,245.94,31.44]
[1758163592529,0.71,245.99,245.94,31.44]
[1758163592704,1.72669409,245.99,245.94,31.44]
[1758163593105,2.9966052,245.99,245.94,31.44]
[1758163593325,0.67,245.98,245.94,31.44]
[1758163593622,0.67,245.97,245.94,31.44]
[1758163593822,5.33515279,245.99,245.94,31.44]
[1758163594319,6.00515279,245.99,245.94,31.44]
[1758163594516,0.06,245.97,245.94,31.44]
[1758163594820,0.2,246.05,245.98,0.28432314]
[1758163595001,0.2,246.05,245.97,26.0]
[1758163595002,0.2,246.05,246.02,26.0]
[1758163595205,0.2,246.05,246.04,4.34870291]
[1758163595507,0.2,246.05,246.04,7.38245004]
[1758163595824,0.87,246.05,246.04,34.67374713]
[1758163596012,0.87,246.05,246.04,3.0337151]
[1758163596212,0.87,246.05,246.04,31.64]
[1758163598507,2.13991111,246.05,246.04,31.64]
[1758163599528,0.87,246.05,246.04,31.64]
[1758163599714,2.13991111,246.05,246.04,31.64]
[1758163599909,2.13991111,246.05,246.0,4.06499868]
[1758163600110,2.13991111,246.05,246.01,31.62]
[1758163600325,2.13991111,246.05,246.02,31.62]
[1758163600623,2.13991111,246.05,246.03,31.62]
[1758163600829,0.87,246.05,246.03,31.62]
[1758163601223,0.67,246.04,246.03,31.62]
[1758163601521,0.67,246.04,246.03,31.6]
[1758163601522,1.93991111,246.04,246.03,31.6]
[1758163601827,1.93991111,246.04,245.93,10.16512919]
[1758163602031,1.26991111,246.01,245.94,31.6]
[1758163602227,1.26991111,246.01,245.95,0.28432314]
[1758163602531,1.26991111,246.02,245.95,0.28432314]
[1758163603131,1.26991111,246.02,245.96,4.06570174]
[1758163603522,1.26991111,246.03,245.96,4.06570174]
[1758163604132,1.26991111,246.02,245.96,4.06570174]
[1758163604707,1.26991111,246.03,245.96,4.06570174]
[1758163605421,1.26991111,246.02,245.96,4.06570174]
[1758163606331,0.67,246.04,245.96,4.06570174]
[1758163606531,1.26991111,246.01,245.95,0.28432314]
[1758163607226,0.67,246.0,245.92,4.73627736]
[1758163607433,1.26991111,245.98,245.93,31.58]
[1758163607611,1.93991111,245.97,245.94,31.58]
[1758163607807,1.93991111,245.96,245.91,11.99820958]
[1758163608124,0.67,245.95,245.91,0.28432314]
[1758163608530,0.67,245.95,245.92,31.58]
[1758163608828,1.26991111,245.96,245.92,31.58]
[1758163609039,1.93991111,245.96,245.91,0.28432314]
[1758163609238,1.93991111,245.96,245.92,31.58]
[1758163609727,1.93991111,245.95,245.89,0.28432314]
[1758163609923,0.67,245.95,245.9,31.58]
[1758163610124,1.93991111,245.94,245.88,4.06694552]
[1758163610327,1.93991111,245.94,245.89,31.58]
[1758163612032,1.93991111,245.94,245.89,35.64680004]
[1758163612334,0.67,245.94,245.89,35.64680004]
[1758163612532,1.93991111,245.96,245.9,4.73664948]
[1758163612720,1.93991111,245.96,245.91,31.58]
[1758163612914,0.67,245.95,245.91,31.58]
[1758163613117,1.26991111,245.96,245.9,4.06664948]
[1758163613349,1.93991111,245.96,245.91,31.56]
[1758163613516,1.93991111,245.95,245.92,0.03]
[1758163613720,1.26991111,245.94,245.92,0.03]
[1758163614042,1.93991111,245.94,245.92,0.03]
[1758163614221,0.67,245.93,245.92,0.03]
[1758163614418,1.26991111,245.94,245.92,0.03]
[1758163614622,0.67,245.93,245.92,0.03]
[1758163614821,1.93991111,245.93,245.92,0.03]
[1758163616747,15.53550512,245.93,245.92,0.03]
[1758163621061,13.59559401,245.93,245.92,0.03]
[1758163621263,1.26991111,245.94,245.92,0.03]
[1758163621556,1.26991111,245.97,245.92,0.69]
[1758163621737,6.05531161,245.98,245.93,0.66]
[1758163622150,1.26991111,245.97,245.93,0.66]
[1758163623055,1.92991111,245.97,245.93,0.66]
[1758163624145,1.92991111,245.97,245.92,31.59]
[1758163624457,1.92991111,245.97,245.92,32.29]
[1758163625153,26.0,245.99,245.93,0.7]
[1758163625452,27.26991111,245.99,245.93,0.7]
[1758163625757,1.26991111,245.99,245.93,0.7]
[1758163626156,1.26991111,245.98,245.93,0.7]
[1758163626361,26.0,246.0,245.94,0.7]
[1758163626658,26.0,246.02,245.94,0.7]
[1758163627067,1.32991111,246.03,245.94,0.7]
[1758163627238,1.32991111,246.03,245.95,4.06586704]
[1758163627437,1.92991111,246.02,245.95,4.06586704]
[1758163627701,1.26991111,245.99,245.93,4.06607805]
[1758163627834,26.06,246.03,245.94,0.98432314]
[1758163628034,1.32991111,246.03,245.94,0.98432314]
[1758163628234,0.06,246.03,245.95,0.7]
[1758163629558,0.06,246.03,245.96,4.06570174]
[1758163629756,0.06,246.03,245.97,0.7]
[1758163630648,0.06,246.03,245.98,4.06537116]
[1758163630848,0.06,246.03,245.99,0.7]
[1758163631461,0.06,246.03,246.0,0.7]
[1758163631669,0.06,246.03,245.99,0.7]
[1758163632168,0.72,246.03,245.99,0.7]
[1758163632667,0.66,246.02,245.98,31.56]
[1758163632867,1.92991111,246.02,245.98,31.56]
[1758163633265,1.26991111,246.0,245.97,31.54]
[1758163633568,1.26991111,246.0,245.95,0.7]
[1758163633771,1.26991111,246.0,245.96,32.26]
[1758163635263,0.66,245.99,245.96,31.56]
[1758163635468,1.92991111,245.99,245.96,31.56]
[1758163635974,1.98386314,245.99,245.96,31.56]
[1758163637771,1.98386314,246.0,245.96,0.7]
[1758163638072,1.98386314,246.0,245.93,4.06619769]
[1758163638378,1.98386314,246.0,245.97,31.52]
[1758163638551,0.66,246.01,245.97,31.52]
[1758163638752,1.98386314,246.0,245.96,32.22]
[1758163641260,26.06,246.03,245.99,26.0]
[1758163641261,0.06,246.03,245.99,26.0]
[1758163641574,0.06,246.03,246.0,32.58]
[1758163641872,2.64386314,246.02,245.99,31.88]
[1758163642176,2.64386314,246.02,245.97,31.92]
[1758163642177,1.98386314,246.0,245.97,31.92]
[1758163642477,1.98386314,245.98,245.97,31.92]
[1758163643574,1.98386314,246.0,245.97,31.92]
[1758163643785,2.64386314,246.0,245.97,31.92]
[1758163643980,0.66,246.0,245.97,31.92]
[1758163644163,0.66,246.0,245.95,0.7]
[1758163644164,0.66,246.02,245.96,31.9]
[1758163644360,1.98386314,246.01,245.96,31.9]
[1758163644561,2.64386314,246.01,245.96,32.6]
[1758163645256,6.70879058,246.01,245.96,32.6]
[1758163646879,6.04879058,246.01,245.96,31.9]
[1758163647056,0.66,246.0,245.96,31.9]
[1758163647252,2.64386314,245.99,245.96,31.9]
[1758163647466,4.06492744,246.01,245.92,0.03]
[1758163647467,1.98386314,245.97,245.92,0.03]
[1758163647668,1.98386314,245.97,245.94,31.88]
[1758163647981,1.98386314,245.97,245.92,0.03]
[1758163647982,0.66,245.96,245.92,0.03]
[1758163648861,0.66,245.96,245.93,31.88]
[1758163649083,0.66,245.96,245.92,0.03]
[1758163649576,0.66,245.96,245.93,31.86]
[1758163650963,0.66,245.96,245.92,0.03]
[1758163651169,0.66,245.96,245.93,31.86]
[1758163651974,6.70910408,245.99,245.94,0.7]
[1758163652780,2.69386314,245.98,245.94,0.7]
[1758163652984,2.69386314,245.98,245.93,31.87]
[1758163653178,2.69386314,245.98,245.93,32.55]
[1758163653673,1.98386314,245.98,245.93,32.55]
[1758163653864,2.69386314,245.98,245.93,32.55]
[1758163654366,6.75928121,245.98,245.93,32.55]